fUST/lending_fUST_20260218
["ID","MTS","AMOUNT","RATE_DAILY","PERIOD"]
[405840414,1771353039124,-500.0,0.00016238,2]
[405840415,1771353039133,-500.0,0.00016238,2]
[405840416,1771353039142,-500.0,0.00016238,2]
[405840417,1771353039152,-500.0,0.00016238,2]
[405840418,1771353039161,-500.0,0.00016238,2]
[405840419,1771353039170,-500.0,0.00016238,2]
[405840420,1771353039180,-500.0,0.00016238,2]
[405840421,1771353039189,-650.0,0.00016238,2]
[405840422,1771353039198,-500.0,0.00016238,2]
[405840423,1771353039208,-500.0,0.00016238,2]
[405840424,1771353039216,-500.0,0.00016238,2]
[405840425,1771353039225,-500.0,0.00016238,2]
[405840426,1771353039234,-500.0,0.00016238,2]
[405840427,1771353039243,-500.0,0.00016238,2]
[405840428,1771353039252,-500.0,0.00016238,2]
[405840429,1771353039261,-244.24,0.00016339,2]
[405840430,1771353039270,-1178.74,0.00016438,2]
[405840431,1771353039279,-9315.6589932,0.00016504,2]
[405840432,1771353039288,-258.186167,0.00016576,2]
[405840433,1771353039297,-1178.74,0.00016712,2]
[405840434,1771353039306,-1178.74,0.00016986,2]
[405840435,1771353039315,-1178.74,0.0001726,2]
[405840436,1771353039325,-244.24,0.00017324,2]
[405840437,1771353039335,-1178.74,0.00017534,2]
[405840438,1771353039347,-500.0,0.0001769,2]
[405840439,1771353039358,-500.0,0.0001769,2]
[405840440,1771353039369,-500.0,0.0001769,2]
[405840441,1771353039380,-500.0,0.0001769,2]
[405840442,1771353039390,-223.83847414,0.0001769,2]
[405840443,1771353039403,-381.15919915,0.0001769,2]
[405840444,1771353039415,-592.54744824,0.0001769,2]
[405840445,1771353039426,-500.0,0.0001769,2]
[405840446,1771353039434,-398.2623635,0.0001769,2]
[405840447,1771353039444,-500.0,0.0001769,2]
[405840448,1771353039455,-500.0,0.0001769,2]
[405840449,1771353039464,-500.0,0.0001769,2]
[405840450,1771353039473,-528.68763405,0.0001769,2]
[405840451,1771353039482,-529.47034409,0.00017694,2]
[405840452,1771353039491,-537.17143058,0.00017694,2]
[405840453,1771353039500,-351.67326154,0.00017694,2]
[405840496,1771353040167,-148.32673846,0.00017694,2]
[405840498,1771353040177,-500.0,0.00017694,2]
[405840500,1771353040186,-500.0,0.00017694,2]
[405840502,1771353040195,-500.0,0.00017694,2]
[405840504,1771353040204,-500.0,0.00017694,2]
[405840506,1771353040214,-500.0,0.00017694,2]
[405840508,1771353040223,-303.16338553,0.00017694,2]
[405840510,1771353040232,-537.29638744,0.00017694,2]
[405840512,1771353040241,-537.36651683,0.00017694,2]
[405840513,1771353040250,-495.43332637,0.00017694,2]
[405840516,1771353040259,-518.94918554,0.00017694,2]
[405840517,1771353040268,-602.74151405,0.00017694,2]
[405840520,1771353040277,-542.96550269,0.00017694,2]
[405840521,1771353040286,-536.58024003,0.00017694,2]
[405840523,1771353040295,-561.71215187,0.00017694,2]
[405840525,1771353040305,-500.0,0.00017694,2]
[405840527,1771353040314,-543.30854416,0.00017694,2]
[405840530,1771353040324,-534.11188015,0.00017694,2]
[405840532,1771353040334,-553.01013944,0.00017694,2]
[405840534,1771353040343,-602.28015462,0.00017694,2]
[405840536,1771353040353,-606.28396229,0.00017694,2]
[405840538,1771353040362,-541.89123241,0.00017694,2]
[405840539,1771353040373,-500.0,0.00017694,2]
[405840542,1771353040385,-500.0,0.00017694,2]
[405840544,1771353040395,-500.80156831,0.00017694,2]
[405840545,1771353040405,-496.502549,0.00017694,2]
[405840547,1771353040415,-226.41391193,0.00017694,2]
[405840549,1771353040427,-533.41974497,0.00017695,2]
[405840551,1771353040436,-500.0,0.00017695,2]
[405840553,1771353040445,-500.0,0.00017695,2]
[405840556,1771353040456,-500.0,0.00017695,2]
[405840557,1771353040466,-500.0,0.00017695,2]
[405840559,1771353040475,-500.0,0.00017695,2]
[405840561,1771353040484,-600.22294153,0.00017695,2]
[405840563,1771353040493,-599.01731571,0.00017695,2]
[405840565,1771353040503,-500.0,0.00017695,2]
[405840567,1771353040512,-532.94160975,0.00017695,2]
[405840569,1771353040520,-558.93489897,0.00017695,2]
[405840571,1771353040530,-509.81456899,0.00017695,2]
[405840573,1771353040539,-298.254158,0.00017695,2]
[405841117,1771353045962,-500.0,0.0001769,2]
[405841119,1771353045971,-201.745842,0.00017695,2]
[405841121,1771353045982,-296.65924372,0.00017695,2]
[405841123,1771353045992,-633.04812445,0.00017695,2]
[405841125,1771353046001,-490.73759586,0.00017695,2]
[405841133,1771353046068,-118.76663163,0.00017695,2]
[405841134,1771353046080,-585.86822871,0.00017695,2]
[405841136,1771353046089,-566.40999828,0.00017695,2]
[405841138,1771353046098,-353.02912564,0.00017695,2]
[405842057,1771353120195,-3082.48636732,0.00016338,2]
[405842062,1771353938133,-501.71719372,0.00013699,2]
[405842063,1771353938153,-150.0,0.00013973,2]
[405842064,1771353938173,-154.0,0.00014521,2]
[405842065,1771353938194,-186.43899681,0.00015716,2]
[405842066,1771354026120,-395.42071392,0.00015559,2]
[405842074,1771354038082,-1030.99116471,0.00015559,2]
[405842075,1771354039286,-439.65432828,0.00015559,2]
[405842092,1771354232055,-158.0,0.00013973,2]
[405842093,1771354232064,-150.0,0.00015796,2]
[405842094,1771354232074,-200.37375744,0.00015955,2]
[405842095,1771354232084,-355.71134587,0.00016151,2]
[405842096,1771354232094,-13.3756659,0.00016151,2]
[405842097,1771354232216,-342.33567997,0.00016151,2]
[405842098,1771354232240,-205.97581783,0.00016305,2]
[405842099,1771354232250,-377.02481716,0.00016438,2]
[405842330,1771354246313,-130.76220498,0.00016438,2]
[405842331,1771354246323,-214.52710002,0.00016438,2]
[405842339,1771354337273,500.0,0.00012935,2]
[405842341,1771354533475,249.7263537,0.00014,3]
[405842346,1771354901206,-1200.0,0.00013004,2]
[405842347,1771354901231,-604.0,0.00013005,2]
[405842348,1771354901243,-500.0,0.00013005,2]
[405842349,1771354901254,-96.0,0.00013005,2]
[405842350,1771354901267,-401.02573302,0.00013005,2]
[405842352,1771354941103,2801.02573302,0.00013001,2]
[405842355,1771355144131,-2.97426698,0.00013005,2]
[405842356,1771355144153,-500.0,0.00013005,2]
[405842357,1771355144172,-409.84460912,0.00013005,2]
[405842358,1771355144192,-4.61801946,0.00013139,2]
[405842359,1771355241103,-150.0,0.00013205,2]
[405842360,1771355241127,-300.0,0.00013271,2]
[405842361,1771355241153,-500.0,0.00013272,2]
[405842362,1771355241180,-500.0,0.00013272,2]
[405842363,1771355241205,-500.0,0.00013272,2]
[405842364,1771355241230,-173.23692634,0.00013272,2]
[405842365,1771355345120,-300.0,0.00013271,2]
[405842366,1771355345144,-300.0,0.00013272,2]
[405842367,1771355345171,-79.71143241,0.00013272,2]
[405842368,1771355348088,-220.28856759,0.00013272,2]
[405842369,1771355348111,-300.0,0.00013272,2]
[405842370,1771355348137,-1200.0,0.00013272,2]
[405842371,1771355348162,-501.12400993,0.00013273,2]
[405842372,1771355348185,-500.0,0.00013273,2]
[405842373,1771355348214,-500.0,0.00013273,2]
[405842374,1771355348238,-500.72528242,0.00013273,2]
[405842375,1771355348261,-503.37028905,0.00013273,2]
[405842376,1771355348284,-500.0,0.00013273,2]
[405842377,1771355348309,-500.0,0.00013273,2]
[405842378,1771355348332,-500.0,0.00013273,2]
[405842379,1771355348354,-501.18756432,0.00013273,2]
[405842380,1771355348380,-500.0,0.00013273,2]
[405842381,1771355348406,-500.0,0.00013418,2]
[405842382,1771355348429,-500.0,0.00013699,2]
[405842383,1771355348452,-502.45711591,0.00013699,2]
[405842384,1771355348476,-500.0,0.00013699,2]
[405842385,1771355348500,-500.75662132,0.00013699,2]
[405842386,1771355348527,-1072.9326204,0.00013821,2]
[405842387,1771355348550,-511.04984903,0.00013821,2]
[405842388,1771355348572,-501.08467469,0.00013821,2]
[405842389,1771355348597,-505.27867023,0.00013821,2]
[405842390,1771355348618,-501.12276075,0.00013821,2]
[405842391,1771355348642,-1000.0,0.00013821,2]
[405842392,1771355348666,-669.1336869,0.00013957,2]
[405842393,1771355348695,-959.50436954,0.00013985,2]
[405842394,1771355356104,-500.0,0.00013273,2]
[405842395,1771355356126,-309.84210986,0.00013492,2]
[405842396,1771355356146,-324.84028779,0.00013492,2]
[405842397,1771355356165,-41.31760235,0.00013821,2]
[405842398,1771355362081,-460.22167619,0.00013821,2]
[405842399,1771355362104,-162.85194046,0.00013985,2]
[405842400,1771355362127,-468.69630925,0.00014021,2]
[405842439,1771355432263,-300.0,0.00013271,2]
[405842441,1771355432272,-608.0,0.00013271,2]
[405842443,1771355432282,-55.17875591,0.00013271,2]
[405842445,1771355432295,-133.82124409,0.00013271,2]
[405842447,1771355432305,-500.0,0.00013272,2]
[405842449,1771355432315,-156.5615492,0.00013272,2]
[405842519,1771355438427,-343.4384508,0.00013272,2]
[405842520,1771355438437,-500.0,0.00013272,2]
[405842521,1771355438447,-500.0,0.00013272,2]
[405842522,1771355438456,-500.0,0.00013272,2]
[405842523,1771355438465,-478.14150684,0.00013272,2]
[405842524,1771355438475,-500.0,0.00013272,2]
[405842525,1771355438484,-500.0,0.00013272,2]
[405842526,1771355438493,-500.0,0.00013272,2]
[405842527,1771355438502,-500.0,0.00013272,2]
[405842528,1771355438511,-500.0,0.00013272,2]
[405842529,1771355438521,-500.0,0.00013272,2]
[405842530,1771355438530,-500.0,0.00013272,2]
[405842531,1771355438539,-500.0,0.00013272,2]
[405842532,1771355438548,-500.0,0.00013272,2]
[405842533,1771355438557,-500.0,0.00013272,2]
[405842534,1771355438566,-500.0,0.00013272,2]
[405842535,1771355438576,-500.0,0.00013272,2]
[405842536,1771355438589,-522.25235604,0.00013272,2]
[405842538,1771355438598,-500.0,0.00013272,2]
[405842539,1771355438607,-500.0,0.00013272,2]
[405842540,1771355438616,-500.0,0.00013272,2]
[405842541,1771355438627,-500.0,0.00013272,2]
[405842542,1771355438636,-500.0,0.00013272,2]
[405842543,1771355438645,-500.0,0.00013272,2]
[405842544,1771355438654,-500.0,0.00013272,2]
[405842545,1771355438663,-500.0,0.00013272,2]
[405842546,1771355438672,-500.0,0.00013272,2]
[405842547,1771355438681,-500.0,0.00013272,2]
[405842548,1771355438691,-500.0,0.00013272,2]
[405842549,1771355438700,-500.0,0.00013272,2]
[405842550,1771355438710,-500.0,0.00013272,2]
[405842551,1771355438719,-500.0,0.00013272,2]
[405842552,1771355438729,-500.0,0.00013272,2]
[405842553,1771355438738,-500.0,0.00013273,2]
[405842554,1771355438747,-502.71759873,0.00013273,2]
[405842555,1771355438756,-177.7342478,0.00013473,2]
[405842556,1771355438766,-500.0,0.00013699,2]
[405842557,1771355438775,-500.0,0.00013699,2]
[405842558,1771355438784,-500.0,0.00013699,2]
[405842559,1771355438794,-500.0,0.00013699,2]
[405842560,1771355438804,-500.0,0.00013699,2]
[405842561,1771355438814,-500.0,0.00013699,2]
[405842562,1771355438823,-515.65335613,0.00013699,2]
[405842563,1771355438834,-31.30369075,0.00014021,2]
[405842564,1771355438844,-1833.78707635,0.00014045,2]
[405842565,1771355438856,-938.06155315,0.00014045,2]
[405842566,1771355438866,-376.70637612,0.00014202,2]
[405842567,1771355438876,-430.52157271,0.00014202,2]
[405842568,1771355438885,-378.08909493,0.00014247,2]
[405842569,1771355438895,-346.61791378,0.00014367,2]
[405842570,1771355438904,-1500.0,0.00014368,2]
[405842571,1771355438913,-269.49480976,0.00014439,2]
[405842572,1771355438924,-485.09065757,0.00014439,2]
[405842573,1771355438933,-862.38339123,0.00014439,2]
[405842574,1771355438943,-350.81805872,0.00014439,2]
[405842575,1771355438952,-368.90306199,0.00014439,2]
[405842576,1771355438962,-1122.35631,0.00014574,2]
[405842577,1771355438972,-2010.29766087,0.00014916,2]
[405842578,1771355438982,-1122.35631,0.00015163,2]
[405842579,1771355438991,-177.0,0.00015205,2]
[405842580,1771355439000,-500.0,0.00015734,2]
[405842581,1771355439009,-1122.35631,0.00015752,2]
[405842582,1771355439018,-420.61521941,0.00016219,2]
[405842583,1771355439028,-409.6333547,0.00016305,2]
[405842584,1771355439040,-3074.30275831,0.00016338,2]
[405842585,1771355439049,-1122.35631,0.0001634,2]
[405842586,1771355439059,-500.0,0.00016436,2]
[405842587,1771355439068,-529.47034409,0.00016438,2]
[405842588,1771355439079,-537.17143058,0.00016438,2]
[405842589,1771355439089,-494.3550607,0.00016438,2]
[405842590,1771355439099,-351.67326154,0.00016438,2]
[405842591,1771355439108,-500.0,0.00016438,2]
[405842592,1771355439118,-317.00758092,0.00016438,2]
[405842593,1771355439127,-328.41601897,0.00016438,2]
[405842594,1771355439136,-64.4443792,0.00016438,2]
[405842595,1771355439148,-484.52061305,0.00016438,2]
[405842596,1771355439157,-500.0,0.00016438,2]
[405842597,1771355439166,-500.0,0.00016438,2]
[405842598,1771355439175,-592.54744824,0.00016438,2]
[405842599,1771355439184,-500.0,0.00016438,2]
[405842600,1771355439193,-381.15919915,0.00016438,2]
[405842601,1771355439202,-398.2623635,0.00016438,2]
[405842602,1771355439213,-500.0,0.00016438,2]
[405842603,1771355439222,-500.0,0.00016438,2]
[405842604,1771355439231,-500.0,0.00016438,2]
[405842605,1771355439240,-339.86688461,0.00016438,2]
[405842606,1771355439250,-183.32284355,0.00016438,2]
[405842607,1771355439264,-316.67715645,0.00016438,2]
[405842608,1771355439273,-31.94913198,0.00016438,2]
[405842609,1771355439285,-521.33086802,0.00016438,2]
[405842610,1771355439294,-500.0,0.00016438,2]
[405842611,1771355439303,-139.95178239,0.00016438,2]
[405842938,1771355443688,-360.04821761,0.00016438,2]
[405842940,1771355443698,-500.0,0.00016438,2]
[405842942,1771355443708,-500.0,0.00016438,2]
[405842944,1771355443717,-340.74644028,0.00016438,2]
[405842969,1771355443941,-159.25355972,0.00016438,2]
[405842971,1771355443951,-357.05960715,0.00016438,2]
[405843084,1771355446359,-142.94039285,0.00016438,2]
[405843085,1771355446368,-500.0,0.00016438,2]
[405843087,1771355446378,-1348.73,0.00016438,2]
[405843088,1771355446387,-500.0,0.00016438,2]
[405843090,1771355446396,-500.0,0.00016438,2]
[405843091,1771355446405,-500.0,0.00016438,2]
[405843093,1771355446414,-383.92,0.00016609,2]
[405843094,1771355446424,-151.0,0.00016709,2]
[405843095,1771355446433,-531.3695067,0.00016712,2]
[405843096,1771355446442,-500.0,0.00016712,2]
[405843097,1771355446451,-528.68763405,0.00016712,2]
[405843098,1771355446585,-1348.73,0.00016712,2]
[405843099,1771355446595,-618.66892125,0.00016712,2]
[405843100,1771355446604,-163.07,0.00016712,2]
[405843101,1771355446613,-1122.35631,0.00016929,2]
[405843102,1771355446623,-500.0,0.00016986,2]
[405843103,1771355446632,-1348.73,0.00016986,2]
[405843104,1771355446642,-500.0,0.00017052,2]
[405843105,1771355446651,-4665.5959521,0.00017053,2]
[405843106,1771355446660,-202.03577582,0.00017072,2]
[405843107,1771355446670,-363.30073208,0.00017072,2]
[405843108,1771355446679,-211.154131,0.00017084,2]
[405843109,1771355446688,-204.0,0.00017205,2]
[405843111,1771355446697,-500.0,0.0001726,2]
[405843112,1771355446706,-1348.73,0.0001726,2]
[405843114,1771355446716,-500.0,0.00017334,2]
[405843116,1771355446726,-500.0,0.00017534,2]
[405843117,1771355446735,-1348.73,0.00017534,2]
[405843119,1771355446744,-250.0,0.00017535,2]
[405843120,1771355446753,-500.0,0.00017619,2]
[405843122,1771355446762,-500.0,0.00017808,2]
[405843123,1771355446772,-1348.73,0.00017808,2]
[405843124,1771355446781,-155.0,0.00017921,2]
[405843126,1771355446790,-250.0,0.00017922,2]
[405843127,1771355446800,-250.0,0.00017922,2]
[405843128,1771355446809,-500.0,0.00017922,2]
[405843129,1771355446819,-500.0,0.00017922,2]
[405843130,1771355446829,-332.81874537,0.00017922,2]
[405843131,1771355446839,-500.0,0.00017922,2]
[405843132,1771355446849,-500.0,0.00017922,2]
[405843133,1771355446859,-250.0,0.00017922,2]
[405843134,1771355446868,-168.3888056,0.00017922,2]
[405843135,1771355446877,-250.0,0.00017922,2]
[405843136,1771355446886,-250.0,0.00017922,2]
[405843137,1771355446896,-500.0,0.00017922,2]
[405843138,1771355446905,-151.0,0.00017922,2]
[405843139,1771355446914,-250.0,0.00017922,2]
[405843140,1771355446924,-174.61919141,0.00017922,2]
[405843141,1771355446933,-250.0,0.00017922,2]
[405843142,1771355446942,-500.0,0.00017922,2]
[405843143,1771355446952,-250.0,0.00017922,2]
[405843144,1771355446961,-151.0,0.00017922,2]
[405843145,1771355446970,-250.0,0.00017922,2]
[405843146,1771355446980,-250.0,0.00017922,2]
[405843147,1771355446989,-181.08010149,0.00017922,2]
[405843148,1771355446998,-250.0,0.00017922,2]
[405843149,1771355447008,-500.0,0.00017922,2]
[405843150,1771355447017,-151.0,0.00017922,2]
[405843151,1771355447026,-250.0,0.00017922,2]
[405843152,1771355447042,-250.0,0.00017922,2]
[405843153,1771355447052,-187.78006525,0.00017922,2]
[405843154,1771355447061,-250.0,0.00017922,2]
[405843155,1771355447071,-500.0,0.00017922,2]
[405843156,1771355447081,-151.0,0.00017922,2]
[405843157,1771355447091,-250.0,0.00017922,2]
[405843158,1771355447100,-194.72792766,0.00017922,2]
[405843159,1771355447109,-250.0,0.00017922,2]
[405843160,1771355447118,-500.0,0.00017922,2]
[405843161,1771355447128,-151.0,0.00017922,2]
[405843162,1771355447137,-250.0,0.00017922,2]
[405843163,1771355447147,-201.93286099,0.00017922,2]
[405843164,1771355447156,-250.0,0.00017922,2]
[405843165,1771355447166,-500.0,0.00017922,2]
[405843166,1771355447175,-151.0,0.00017922,2]
[405843167,1771355447184,-250.0,0.00017922,2]
[405843168,1771355447194,-209.40437684,0.00017922,2]
[405843169,1771355447203,-292.4410008,0.00017922,2]
[405843170,1771355447213,-500.0,0.00017922,2]
[405843171,1771355447222,-500.0,0.00017922,2]
[405843172,1771355447232,-151.0,0.00017922,2]
[405843173,1771355447241,-217.15233878,0.00017922,2]
[405843174,1771355447250,-250.0,0.00017922,2]
[405843175,1771355447260,-500.0,0.00017922,2]
[405843176,1771355447269,-186.48551683,0.00017922,2]
[405843177,1771355447279,-225.18697532,0.00017922,2]
[405843178,1771355447288,-250.0,0.00017922,2]
[405843179,1771355447298,-501.30030461,0.00017922,2]
[405843180,1771355447307,-233.51889341,0.00017922,2]
[405843181,1771355447316,-250.0,0.00017922,2]
[405843182,1771355447327,-242.15909246,0.00017922,2]
[405843183,1771355447337,-160.42286585,0.00017922,2]
[405843184,1771355447346,-251.11897888,0.00017922,2]
[405843185,1771355447355,-250.0,0.00017922,2]
[405843186,1771355447365,-260.4103811,0.00017922,2]
[405843187,1771355447375,-270.0455652,0.00017922,2]
[405843188,1771355447384,-280.03725112,0.00017922,2]
[405843189,1771355447394,-250.0,0.00017922,2]
[405843190,1771355447403,-290.39862941,0.00017922,2]
[405843191,1771355447413,-301.1433787,0.00017922,2]
[405843192,1771355447422,-250.0,0.00017922,2]
[405843193,1771355447432,-250.0,0.00017922,2]
[405843194,1771355447441,-319.98218659,0.00017922,2]
[405843195,1771355447450,-717.81283127,0.00017971,2]
[405843196,1771355447460,-1292.06309628,0.00017971,2]
[405843197,1771355447469,-294.84229401,0.00017971,2]
[405843198,1771355447478,-2297.00106005,0.00017971,2]
[405843199,1771355447488,-3589.06415633,0.00017971,2]
[405843200,1771355447497,-336.96262172,0.00017971,2]
[405843201,1771355447507,-373.0,0.00018066,5]
[405843202,1771355447516,-500.0,0.00018079,2]
[405843203,1771355447526,-316.35,0.00018082,2]
[405843204,1771355447535,-1348.73,0.00018082,2]
[405843205,1771355447544,-1060.0,0.0001811,2]
[405843206,1771355447553,-500.0,0.000182,2]
[405843207,1771355447563,-1348.73,0.00018356,2]
[405843208,1771355447572,-1210.89696081,0.0001863,2]
[405843209,1771355447610,-137.83303919,0.0001863,2]
[405843210,1771355447620,-500.0,0.00018828,2]
[405843211,1771355447630,-1348.73,0.00018904,2]
[405843212,1771355447640,-743.45912368,0.00019073,2]
[405843213,1771355447649,-1348.73,0.00019178,2]
[405843214,1771355447659,-183.78063,0.00019178,2]
[405843215,1771355447669,-183.78063,0.00019178,2]
[405843216,1771355447679,-183.78063,0.00019178,2]
[405843217,1771355447688,-183.78063,0.00019178,2]
[405843218,1771355447698,-183.78063,0.00019178,2]
[405843219,1771355447708,-183.78063,0.00019178,2]
[405843220,1771355447717,-183.78063,0.00019178,2]
[405843221,1771355447727,-183.78063,0.00019178,2]
[405843222,1771355447736,-183.78063,0.00019178,2]
[405843223,1771355447746,-183.78063,0.00019178,2]
[405843224,1771355447755,-183.78063,0.00019178,2]
[405843225,1771355447765,-183.78063,0.00019178,2]
[405843226,1771355447774,-183.78063,0.00019178,2]
[405843227,1771355447784,-183.78063,0.00019178,2]
[405843228,1771355447795,-183.78063,0.00019178,2]
[405843229,1771355447804,-183.78063,0.00019178,2]
[405843230,1771355447813,-183.78063,0.00019178,2]
[405843231,1771355447823,-183.78063,0.00019178,2]
[405843232,1771355447832,-183.78063,0.00019178,2]
[405843233,1771355447842,-183.780624,0.00019178,2]
[405843234,1771355447852,-151.0,0.00019178,2]
[405843235,1771355447862,-151.0,0.00019178,2]
[405843236,1771355447872,-151.0,0.00019178,2]
[405843237,1771355447881,-151.0,0.00019178,2]
[405843238,1771355447891,-151.0,0.00019178,2]
[405843239,1771355447900,-151.0,0.00019178,2]
[405843240,1771355447910,-151.0,0.00019178,2]
[405843241,1771355447919,-151.0,0.00019178,2]
[405843242,1771355447928,-212.263083,0.00019178,2]
[405843243,1771355447937,-231.0,0.00019205,2]
[405843244,1771355447947,-1041.035172,0.00019216,2]
[405843245,1771355447958,-366.0,0.00019266,2]
[405843246,1771355447968,-1985.09158162,0.00019449,7]
[405843247,1771355447977,-158.83991491,0.00019449,7]
[405843248,1771355447987,-1348.73,0.00019452,2]
[405843249,1771355447996,-232.2863446,0.00019698,2]
[405843250,1771355448005,-2803.0842077,0.00019704,2]
[405843268,1771355674065,1417.54647076,0.00013001,2]
[405843269,1771355682598,1865.65925509,0.00013001,2]
[405843270,1771355767847,178.51399751,0.00013001,2]
[405843271,1771355861837,5000.0,0.00013001,2]
[405843272,1771355884636,4733.83170123,0.00013001,2]
[405843273,1771356080483,5000.0,0.00013001,2]
[405843274,1771356102722,5000.0,0.00013001,2]
[405843275,1771356124729,2608.74862641,0.00013001,2]
[405843281,1771356319858,352.54631876,0.00013001,2]
[405843282,1771356338199,-150.0,0.00013239,2]
[405843283,1771356338222,-263.35116344,0.00013272,2]
[405843286,1771356426074,-2263.37592928,0.00013139,2]
[405843287,1771356437095,-178.41167288,0.00013139,2]
[405843288,1771356437115,-76.9238767,0.00013272,2]
[405843290,1771356514583,310.63748462,0.00014,3]
[405843293,1771356554105,-300.0,0.00013271,2]
[405843294,1771356554128,-500.0,0.00013272,2]
[405843295,1771356554149,-500.0,0.00013272,2]
[405843296,1771356554173,-390.97976559,0.00013272,2]
[405843297,1771356554196,-500.0,0.00013272,2]
[405843298,1771356554219,-500.0,0.00013272,2]
[405843299,1771356554242,-460.03562291,0.00013272,2]
[405843300,1771356554262,-163.51867516,0.00013272,2]
[405843301,1771356554282,-500.0,0.00013272,2]
[405843302,1771356554305,-150.0,0.00013272,2]
[405843303,1771356554331,-1123.0761233,0.00013272,2]
[405843304,1771356554350,-504.58382265,0.00013273,2]
[405843305,1771356554370,-500.0,0.00013273,2]
[405843306,1771356554395,-39.12831393,0.00013273,2]
[405843307,1771356567083,-464.91923485,0.00013273,2]
[405843308,1771356567104,-500.0,0.00013273,2]
[405843309,1771356567125,-501.06794213,0.00013273,2]
[405843310,1771356567146,-500.0,0.00013273,2]
[405843311,1771356567167,-380.94886121,0.00013273,2]
[405843312,1771356567187,-548.67524889,0.00013273,2]
[405843313,1771356567208,-500.0,0.00013273,2]
[405843314,1771356567231,-501.69303718,0.00013273,2]
[405843315,1771356567253,-500.0,0.00013273,2]
[405843316,1771356567271,-502.90603582,0.00013699,2]
[405843317,1771356567290,-500.0,0.00013699,2]
[405843318,1771356567309,-500.0,0.00013699,2]
[405843319,1771356567334,-500.90562076,0.00013699,2]
[405843320,1771356567357,-500.0,0.00013699,2]
[405843321,1771356567378,-425.84035003,0.00013699,2]
[405843322,1771356567398,-500.0,0.00013699,2]
[405843323,1771356567422,-500.40520893,0.00013699,2]
[405843324,1771356567442,-503.03943646,0.00013699,2]
[405843325,1771356567464,-351.80162554,0.00013699,2]
[405843326,1771356567488,-170.71107227,0.00013699,2]
[405843327,1771356569091,-164.36152286,0.00013699,2]
[405843328,1771356569111,-667.43552095,0.00013821,2]
[405843329,1771356569130,-1000.0,0.00013821,2]
[405843330,1771356569151,-354.33740536,0.00013821,2]
[405843331,1771356569170,-952.61434572,0.00013821,2]
[405843334,1771356606578,50.49592757,0.00013699,2]
[405843669,1771356641174,-449.50407243,0.00013699,2]
[405843671,1771356641183,-500.0,0.00013699,2]
[405843673,1771356641193,-357.65429456,0.00014246,2]
[405843675,1771356641202,-300.0,0.00014246,2]
[405843677,1771356641212,-409.5008881,0.00014247,2]
[405843679,1771356641223,-591.55877938,0.00014247,2]
[405843681,1771356641232,-501.77018036,0.00014247,2]
[405843683,1771356641241,-503.49806099,0.00014247,2]
[405843685,1771356641251,-344.85176419,0.00014247,2]
[405843687,1771356641260,-674.34565639,0.00014247,2]
[405843690,1771356641270,-133.95379769,0.00014367,2]
[405843692,1771356641283,-169.04620231,0.00014367,2]
[405843693,1771356641295,-1032.37240714,0.00014368,2]
[405843938,1771356643885,-13.87166189,0.00014368,2]
[405844119,1771356646562,-453.75593097,0.00014368,2]
[405844121,1771356646572,-500.0,0.00014916,2]
[405844123,1771356646581,-91.70991777,0.00015272,2]
[405845093,1771356701895,-500.0,0.00013273,2]
[405845164,1771357370917,-4300.0,0.0001314,2]
[405845165,1771357370938,-700.0,0.0001314,2]
[405845166,1771357370949,-500.0,0.00013273,2]
[405845167,1771357370958,-205.6078801,0.00013273,2]